fUST/lending_fUST_20260603
["ID","MTS","AMOUNT","RATE_DAILY","PERIOD"]
[423781905,1780423846000,-675.34,0.00015342,2]
[423781897,1780423846000,-500.0,0.00015342,2]
[423781908,1780423846000,-1159.15,0.00015342,2]
[423781901,1780423846000,-500.0,0.00015342,2]
[423781909,1780423846000,-500.0,0.00015342,2]
[423781903,1780423846000,-500.0,0.00015342,2]
[423781904,1780423846000,-500.0,0.00015342,2]
[423781902,1780423846000,-500.0,0.00015342,2]
[423781907,1780423846000,-500.0,0.00015342,2]
[423781900,1780423846000,-500.0,0.00015342,2]
[423781906,1780423846000,-500.0,0.00015342,2]
[423781992,1780423847000,-500.0,0.0001589,2]
[423781989,1780423847000,-500.0,0.0001589,2]
[423781987,1780423847000,-500.0,0.0001589,2]
[423781984,1780423847000,-303.44,0.0001589,2]
[423781985,1780423847000,-500.0,0.0001589,2]
[423781975,1780423847000,-500.0,0.0001589,2]
[423781973,1780423847000,-500.0,0.0001589,2]
[423781981,1780423847000,-1159.15,0.0001589,2]
[423781980,1780423847000,-500.0,0.0001589,2]
[423781986,1780423847000,-500.0,0.0001589,2]
[423781991,1780423847000,-500.0,0.0001589,2]
[423781979,1780423847000,-324.72,0.0001589,2]
[423781995,1780423847000,-1796.92,0.0001589,2]
[423782000,1780423847000,-1516.48,0.00016063,2]
[423781990,1780423847000,-500.0,0.0001589,2]
[423781998,1780423847000,-500.0,0.0001589,2]
[423781994,1780423847000,-500.0,0.0001589,2]
[423781988,1780423847000,-500.0,0.0001589,2]
[423781993,1780423847000,-2657.49,0.0001589,2]
[423782008,1780423847000,-713.0,0.00016063,2]
[423781999,1780423847000,-361.07942581,0.0001589,2]
[423782001,1780423847000,-1516.48,0.00016063,2]
[423782005,1780423847000,-1516.60948988,0.00016063,2]
[423782006,1780423847000,-713.0,0.00016063,2]
[423782003,1780423847000,-1516.48,0.00016063,2]
[423782004,1780423847000,-1516.48,0.00016063,2]
[423781978,1780423847000,-675.34,0.0001589,2]
[423781996,1780423847000,-1032.39,0.0001589,2]
[423781982,1780423847000,-500.0,0.0001589,2]
[423781961,1780423847000,-500.0,0.00015616,2]
[423781977,1780423847000,-500.0,0.0001589,2]
[423781952,1780423847000,-500.0,0.00015616,2]
[423781950,1780423847000,-1082.31,0.00015616,2]
[423781951,1780423847000,-500.0,0.00015616,2]
[423781948,1780423847000,-1159.15,0.00015616,2]
[423781947,1780423847000,-500.0,0.00015616,2]
[423781949,1780423847000,-500.0,0.00015616,2]
[423781953,1780423847000,-500.0,0.00015616,2]
[423781955,1780423847000,-500.0,0.00015616,2]
[423781957,1780423847000,-500.0,0.00015616,2]
[423781958,1780423847000,-500.0,0.00015616,2]
[423781959,1780423847000,-500.0,0.00015616,2]
[423781954,1780423847000,-500.0,0.00015616,2]
[423781956,1780423847000,-500.0,0.00015616,2]
[423781983,1780423847000,-1082.31,0.0001589,2]
[423781960,1780423847000,-2657.49,0.00015616,2]
[423781965,1780423847000,-500.0,0.00015616,2]
[423781971,1780423847000,-500.0,0.0001589,2]
[423781962,1780423847000,-1796.92,0.00015616,2]
[423781964,1780423847000,-500.0,0.00015616,2]
[423781963,1780423847000,-1032.39,0.00015616,2]
[423781966,1780423847000,-500.0,0.00015616,2]
[423781969,1780423847000,-500.0,0.0001589,2]
[423781970,1780423847000,-151.95,0.0001589,2]
[423781967,1780423847000,-864.0,0.000158,2]
[423781968,1780423847000,-500.0,0.0001589,2]
[423781972,1780423847000,-500.0,0.0001589,2]
[423781976,1780423847000,-500.0,0.0001589,2]
[423781974,1780423847000,-505.97,0.0001589,2]
[423782007,1780423847000,-713.0,0.00016063,2]
[423782002,1780423847000,-1516.48,0.00016063,2]
[423781997,1780423847000,-500.0,0.0001589,2]
[423782010,1780423847000,-713.0,0.00016063,2]
[423782037,1780423847000,-1032.39,0.00016164,2]
[423782049,1780423847000,-675.34,0.00016438,2]
[423782046,1780423847000,-500.0,0.00016438,2]
[423782048,1780423847000,-500.0,0.00016438,2]
[423782042,1780423847000,-500.0,0.00016438,2]
[423782043,1780423847000,-566.57713103,0.00016438,2]
[423782047,1780423847000,-500.0,0.00016438,2]
[423782044,1780423847000,-500.0,0.00016438,2]
[423782052,1780423847000,-500.0,0.00016438,2]
[423782062,1780423847000,-285.30003306,0.00016438,2]
[423782064,1780423847000,-1032.39,0.00016438,2]
[423782054,1780423847000,-536.16,0.00016438,2]
[423782051,1780423847000,-1159.15,0.00016438,2]
[423782045,1780423847000,-505.97,0.00016438,2]
[423782063,1780423847000,-1796.92,0.00016438,2]
[423782057,1780423847000,-500.0,0.00016438,2]
[423782059,1780423847000,-500.0,0.00016438,2]
[423782055,1780423847000,-500.0,0.00016438,2]
[423782058,1780423847000,-269.98320771,0.00016438,2]
[423782061,1780423847000,-2657.49,0.00016438,2]
[423782060,1780423847000,-500.0,0.00016438,2]
[423782065,1780423847000,-500.0,0.00016438,2]
[423782067,1780423847000,-285.34,0.00016438,2]
[423782070,1780423847000,-354.65,0.00016712,2]
[423782066,1780423847000,-500.0,0.00016438,2]
[423782068,1780423847000,-505.97,0.00016712,2]
[423782069,1780423847000,-500.0,0.00016712,2]
[423782009,1780423847000,-713.0,0.00016063,2]
[423782056,1780423847000,-500.0,0.00016438,2]
[423782040,1780423847000,-171.95687222,0.00016318,2]
[423782053,1780423847000,-1082.31,0.00016438,2]
[423782050,1780423847000,-500.0,0.00016438,2]
[423782012,1780423847000,-151.41,0.000161,2]
[423782041,1780423847000,-193.9976405,0.00016318,2]
[423782014,1780423847000,-534.72,0.00016164,2]
[423782011,1780423847000,-713.13502807,0.00016063,2]
[423782015,1780423847000,-598.53310372,0.00016164,2]
[423782020,1780423847000,-500.0,0.00016164,2]
[423782021,1780423847000,-500.0,0.00016164,2]
[423782013,1780423847000,-500.0,0.00016164,2]
[423782016,1780423847000,-500.0,0.00016164,2]
[423782017,1780423847000,-500.0,0.00016164,2]
[423782019,1780423847000,-500.0,0.00016164,2]
[423782022,1780423847000,-675.34,0.00016164,2]
[423782025,1780423847000,-500.0,0.00016164,2]
[423782028,1780423847000,-500.0,0.00016164,2]
[423782024,1780423847000,-1159.15,0.00016164,2]
[423782018,1780423847000,-505.97,0.00016164,2]
[423782038,1780423847000,-500.0,0.00016164,2]
[423782039,1780423847000,-500.0,0.00016164,2]
[423782036,1780423847000,-1796.92,0.00016164,2]
[423782035,1780423847000,-500.0,0.00016164,2]
[423782032,1780423847000,-500.0,0.00016164,2]
[423782023,1780423847000,-500.0,0.00016164,2]
[423782031,1780423847000,-500.0,0.00016164,2]
[423782034,1780423847000,-2657.49,0.00016164,2]
[423782030,1780423847000,-500.0,0.00016164,2]
[423782029,1780423847000,-500.0,0.00016164,2]
[423782027,1780423847000,-500.0,0.00016164,2]
[423782026,1780423847000,-1082.31,0.00016164,2]
[423782033,1780423847000,-500.0,0.00016164,2]
[423782111,1780423848000,-500.0,0.0001726,2]
[423782107,1780423848000,-249.0,0.00017236,2]
[423782109,1780423848000,-500.0,0.0001726,2]
[423782112,1780423848000,-1159.15,0.0001726,2]
[423782110,1780423848000,-675.34,0.0001726,2]
[423782114,1780423848000,-1082.31,0.0001726,2]
[423782100,1780423848000,-500.0,0.00016986,2]
[423782108,1780423848000,-505.97,0.0001726,2]
[423782119,1780423848000,-2657.49,0.0001726,2]
[423782118,1780423848000,-398.87,0.0001726,2]
[423782103,1780423848000,-1032.39,0.00016986,2]
[423782113,1780423848000,-500.0,0.0001726,2]
[423782120,1780423848000,-1796.92,0.0001726,2]
[423782115,1780423848000,-500.0,0.0001726,2]
[423782132,1780423848000,-500.0,0.00017534,2]
[423782117,1780423848000,-500.0,0.0001726,2]
[423782123,1780423848000,-1828.3257049,0.00017268,2]
[423782122,1780423848000,-500.0,0.0001726,2]
[423782128,1780423848000,-500.0,0.00017534,2]
[423782121,1780423848000,-1032.39,0.0001726,2]
[423782125,1780423848000,-611.4849328,0.00017268,2]
[423782124,1780423848000,-8049.0759884,0.00017268,2]
[423782127,1780423848000,-505.97,0.00017534,2]
[423782126,1780423848000,-1000.0,0.0001738,2]
[423782129,1780423848000,-675.34,0.00017534,2]
[423782131,1780423848000,-1159.15,0.00017534,2]
[423782130,1780423848000,-500.0,0.00017534,2]
[423782135,1780423848000,-500.0,0.00017534,2]
[423782102,1780423848000,-1796.92,0.00016986,2]
[423782116,1780423848000,-500.0,0.0001726,2]
[423782105,1780423848000,-343.91374444,0.00017111,2]
[423782077,1780423848000,-500.0,0.00016712,2]
[423782106,1780423848000,-387.995281,0.00017111,2]
[423782136,1780423848000,-500.0,0.00017534,2]
[423782075,1780423848000,-500.0,0.00016712,2]
[423782073,1780423848000,-500.0,0.00016712,2]
[423782072,1780423848000,-675.34,0.00016712,2]
[423782074,1780423848000,-1159.15,0.00016712,2]
[423782071,1780423848000,-500.0,0.00016712,2]
[423782076,1780423848000,-1082.31,0.00016712,2]
[423782078,1780423848000,-500.0,0.00016712,2]
[423782079,1780423848000,-500.0,0.00016712,2]
[423782080,1780423848000,-500.0,0.00016712,2]
[423782082,1780423848000,-2657.49,0.00016712,2]
[423782090,1780423848000,-500.0,0.00016986,2]
[423782081,1780423848000,-500.0,0.00016712,2]
[423782092,1780423848000,-500.0,0.00016986,2]
[423782098,1780423848000,-500.0,0.00016986,2]
[423782083,1780423848000,-1796.92,0.00016712,2]
[423782087,1780423848000,-151.41,0.000169,2]
[423782088,1780423848000,-505.97,0.00016986,2]
[423782089,1780423848000,-540.35,0.00016986,2]
[423782086,1780423848000,-500.0,0.00016712,2]
[423782084,1780423848000,-1032.39,0.00016712,2]
[423782085,1780423848000,-219.68,0.00016712,2]
[423782093,1780423848000,-1159.15,0.00016986,2]
[423782095,1780423848000,-1082.31,0.00016986,2]
[423782094,1780423848000,-500.0,0.00016986,2]
[423782096,1780423848000,-500.0,0.00016986,2]
[423782097,1780423848000,-500.0,0.00016986,2]
[423782104,1780423848000,-500.0,0.00016986,2]
[423782101,1780423848000,-2657.49,0.00016986,2]
[423782099,1780423848000,-390.25,0.00016986,2]
[423782091,1780423848000,-675.34,0.00016986,2]
[423782139,1780423848000,-1032.39,0.00017534,2]
[423782185,1780423848000,-675.34,0.00018356,2]
[423782133,1780423848000,-1082.31,0.00017534,2]
[423782172,1780423848000,-1159.15,0.00018082,2]
[423782182,1780423848000,-859.7843611,0.00018343,2]
[423782173,1780423848000,-470.11158996,0.00018082,2]
[423782175,1780423848000,-515.64,0.00018082,2]
[423782174,1780423848000,-1082.31,0.00018082,2]
[423782176,1780423848000,-500.0,0.00018082,2]
[423782179,1780423848000,-1796.92,0.00018082,2]
[423782177,1780423848000,-350.17,0.00018082,2]
[423782180,1780423848000,-1032.39,0.00018082,2]
[423782181,1780423848000,-500.0,0.00018082,2]
[423782178,1780423848000,-2657.49,0.00018082,2]
[423782184,1780423848000,-500.0,0.00018356,2]
[423782194,1780423848000,-1352.39212201,0.000184,2]
[423782183,1780423848000,-505.97,0.00018356,2]
[423782186,1780423848000,-516.75,0.00018356,2]
[423782189,1780423848000,-500.0,0.00018356,2]
[423782187,1780423848000,-1159.15,0.00018356,2]
[423782137,1780423848000,-2657.49,0.00017534,2]
[423782188,1780423848000,-1082.31,0.00018356,2]
[423782195,1780423848000,-756.9535641,0.000184,2]
[423782196,1780423848000,-1142.63070997,0.000184,2]
[423782193,1780423848000,-500.0,0.00018356,2]
[423782190,1780423848000,-2657.49,0.00018356,2]
[423782191,1780423848000,-1796.92,0.00018356,2]
[423782199,1780423848000,-568.38897,0.00018493,2]
[423782198,1780423848000,-160.0,0.00018437,2]
[423782197,1780423848000,-160.0,0.00018437,2]
[423782200,1780423848000,-151.41,0.000185,2]
[423782201,1780423848000,-667.29597495,0.00018526,3]
[423782171,1780423848000,-500.0,0.00018082,2]
[423782163,1780423848000,-687.82748888,0.00017991,2]
[423782192,1780423848000,-1032.39,0.00018356,2]
[423782160,1780423848000,-1032.39,0.00017808,2]
[423782161,1780423848000,-500.0,0.00017808,2]
[423782134,1780423848000,-500.0,0.00017534,2]
[423782138,1780423848000,-1796.92,0.00017534,2]
[423782140,1780423848000,-500.0,0.00017534,2]
[423782141,1780423848000,-515.87061666,0.00017639,2]
[423782142,1780423848000,-221.23918934,0.00017639,2]
[423782145,1780423848000,-151.41,0.000177,2]
[423782147,1780423848000,-505.97,0.00017808,2]
[423782146,1780423848000,-1725.48462153,0.00017759,2]
[423782148,1780423848000,-308.497,0.00017808,2]
[423782143,1780423848000,-581.9929215,0.00017639,2]
[423782150,1780423848000,-675.34,0.00017808,2]
[423782149,1780423848000,-500.0,0.00017808,2]
[423782153,1780423848000,-500.0,0.00017808,2]
[423782152,1780423848000,-1159.15,0.00017808,2]
[423782144,1780423848000,-192.26438907,0.00017646,2]
[423782155,1780423848000,-500.0,0.00017808,2]
[423782162,1780423848000,-240.58620915,0.00017952,2]
[423782151,1780423848000,-500.0,0.00017808,2]
[423782159,1780423848000,-1796.92,0.00017808,2]
[423782164,1780423848000,-442.47837869,0.00017991,2]
[423782166,1780423848000,-384.52877814,0.00017998,2]
[423782170,1780423848000,-675.34,0.00018082,2]
[423782158,1780423848000,-2657.49,0.00017808,2]
[423782165,1780423848000,-157.79160527,0.00017998,2]
[423782156,1780423848000,-500.0,0.00017808,2]
[423782169,1780423848000,-500.0,0.00018082,2]
[423782168,1780423848000,-505.97,0.00018082,2]
[423782167,1780423848000,-183.63633377,0.00017998,2]
[423782157,1780423848000,-500.0,0.00017808,2]
[423782154,1780423848000,-1082.31,0.00017808,2]
[423782225,1780423849000,-1142.63070997,0.000189,2]
[423782230,1780423849000,-245.01456637,0.00018904,2]
[423782231,1780423849000,-441.02621946,0.00018904,2]
[423782227,1780423849000,-151.5,0.00018904,2]
[423782229,1780423849000,-505.97,0.00018904,2]
[423782228,1780423849000,-185.56495545,0.00018904,2]
[423782232,1780423849000,-500.0,0.00018904,2]
[423782234,1780423849000,-675.34,0.00018904,2]
[423782239,1780423849000,-1093.38466145,0.00018904,2]
[423782244,1780423849000,-500.0,0.00018904,2]
[423782246,1780423849000,-500.0,0.00018941,2]
[423782233,1780423849000,-784.04661238,0.00018904,2]
[423782235,1780423849000,-1159.15,0.00018904,2]
[423782236,1780423849000,-341.6827067,0.00018904,2]
[423782240,1780423849000,-500.0,0.00018904,2]
[423782226,1780423849000,-151.5,0.00018904,2]
[423782241,1780423849000,-2657.49,0.00018904,2]
[423782245,1780423849000,-2218.62,0.00018904,2]
[423782222,1780423849000,-1031.74123333,0.00018871,2]
[423782209,1780423849000,-292.88093251,0.0001863,2]
[423782215,1780423849000,-1796.92,0.0001863,2]
[423782238,1780423849000,-615.02887206,0.00018904,2]
[423782203,1780423849000,-1352.39212201,0.000186,2]
[423782202,1780423849000,-744.45694645,0.00018526,3]
[423782206,1780423849000,-505.97,0.0001863,2]
[423782205,1780423849000,-1142.63070997,0.000186,2]
[423782208,1780423849000,-500.0,0.00013698,2]
[423782211,1780423849000,-1159.15,0.0001863,2]
[423782210,1780423849000,-675.34,0.0001863,2]
[423782216,1780423849000,-1032.39,0.0001863,2]
[423782213,1780423849000,-500.0,0.0001863,2]
[423782224,1780423849000,-756.9535641,0.000189,2]
[423782212,1780423849000,-1082.31,0.0001863,2]
[423782214,1780423849000,-2657.49,0.0001863,2]
[423782217,1780423849000,-500.0,0.0001863,2]
[423782220,1780423849000,-756.9535641,0.000187,2]
[423782218,1780423849000,-2218.62,0.0001863,2]
[423782204,1780423849000,-756.9535641,0.000186,2]
[423782219,1780423849000,-1352.39212201,0.000187,2]
[423782223,1780423849000,-1352.39212201,0.000189,2]
[423782242,1780423849000,-1796.92,0.00018904,2]
[423782207,1780423849000,-207.11906749,0.0001863,2]
[423782243,1780423849000,-1032.39,0.00018904,2]
[423782270,1780423849000,-1159.15,0.00019452,2]
[423782272,1780423849000,-500.0,0.00019452,2]
[423782271,1780423849000,-1082.31,0.00019452,2]
[423782273,1780423849000,-2657.49,0.00019452,2]
[423782274,1780423849000,-1796.92,0.00019452,2]
[423782276,1780423849000,-2218.62,0.00019452,2]
[423782275,1780423849000,-1032.39,0.00019452,2]
[423782277,1780423849000,-1142.63070997,0.000195,2]
[423782269,1780423849000,-675.34,0.00019452,2]
[423782281,1780423849000,-1142.63070997,0.000197,2]
[423782280,1780423849000,-1203.69810555,0.00019663,2]
[423782282,1780423849000,-505.97,0.00019726,2]
[423782279,1780423849000,-300.0,0.00019595,2]
[423782283,1780423849000,-675.34,0.00019726,2]
[423782284,1780423849000,-1159.15,0.00019726,2]
[423782285,1780423849000,-1082.31,0.00019726,2]
[423782286,1780423849000,-500.0,0.00019726,2]
[423782237,1780423849000,-1082.31,0.00018904,2]
[423782278,1780423849000,-300.0,0.00019589,3]
[423782266,1780423849000,-1142.63070997,0.000193,2]
[423782221,1780423849000,-1142.63070997,0.000187,2]
[423782268,1780423849000,-505.97,0.00019452,2]
[423782248,1780423849000,-1352.39212201,0.000191,2]
[423782247,1780423849000,-152.0,0.00019,7]
[423782249,1780423849000,-756.9535641,0.000191,2]
[423782254,1780423849000,-393.86,0.00019178,2]
[423782250,1780423849000,-1142.63070997,0.000191,2]
[423782253,1780423849000,-505.97,0.00019178,2]
[423782258,1780423849000,-300.0,0.00019178,2]
[423782259,1780423849000,-500.0,0.00019178,2]
[423782251,1780423849000,-1000.0,0.00019118,2]
[423782267,1780423849000,-151.41,0.000193,2]
[423782257,1780423849000,-1082.31,0.00019178,2]
[423782255,1780423849000,-675.34,0.00019178,2]
[423782252,1780423849000,-244.0,0.00019118,2]
[423782260,1780423849000,-2657.49,0.00019178,2]
[423782265,1780423849000,-282.0,0.00019236,2]
[423782262,1780423849000,-1032.39,0.00019178,2]
[423782263,1780423849000,-624.42639602,0.00019178,2]
[423782264,1780423849000,-2218.62,0.00019178,2]
[423782261,1780423849000,-1796.92,0.00019178,2]
[423782256,1780423849000,-1159.15,0.00019178,2]
[423782305,1780423850000,-1000.0,0.000175,2]
[423782297,1780423850000,-216.03199492,0.00013972,2]
[423782294,1780423850000,-26.50045001,0.00013972,2]
[423782295,1780423850000,-259.14535789,0.00013972,2]
[423782289,1780423850000,-1032.39,0.00019726,2]
[423782292,1780423850000,-500.0,0.00013698,2]
[423782291,1780423850000,-118740.02085916,0.00019733,2]
[423782288,1780423850000,-1796.92,0.00019726,2]
[423782296,1780423850000,-500.0,0.00013698,2]
[423782287,1780423850000,-2657.49,0.00019726,2]
[423782293,1780423850000,-500.0,0.00013972,2]
[423782298,1780423850000,-500.0,0.00013972,2]
[423782300,1780423850000,-500.0,0.00014246,2]
[423782304,1780423850000,-1261.095336,0.00017,2]
[423782301,1780423850000,-500.0,0.0001452,2]
[423782302,1780423850000,-537.68,0.0001452,2]
[423782303,1780423850000,-500.0,0.00014794,2]
[423782306,1780423850000,-1000.0,0.00018,2]
[423782307,1780423850000,-1000.0,0.000185,2]
[423782308,1780423850000,-926.01148247,0.00019,2]
[423782309,1780423850000,-73.98851753,0.00019,2]
[423782290,1780423850000,-2218.62,0.00019726,2]
[423782312,1780423850000,-8991.6464176,0.00019733,2]
[423782311,1780423850000,-99998.15163983,0.00019733,2]
[423782310,1780423850000,-1000.0,0.000195,2]
[423782299,1780423850000,-500.0,0.00014246,2]
[423782313,1780423850000,-33708.5,0.00019733,2]
[423784741,1780424107000,151.0,0.000226,120]
[423784742,1780424156000,151.0,0.000226,120]
[423784745,1780424206000,151.0,0.000226,120]
[423784747,1780424247000,151.0,0.000226,120]
[423784748,1780424267000,9096.48,0.00023438,30]
[423784749,1780424286000,151.0,0.000226,120]
[423784751,1780424326000,151.0,0.000226,120]
[423784753,1780424356000,151.0,0.000226,120]
[423784754,1780424379000,806.83,8.203e-05,2]
[423784756,1780424406000,151.0,0.000226,120]
[423784757,1780424446000,151.0,0.000226,120]
[423784759,1780424486000,151.0,0.000226,120]
[423784761,1780424529000,9432.75435224,7.6e-05,2]
[423784764,1780424604000,726.14,8.203e-05,2]
[423784765,1780424630000,-579.53615751,9.9e-05,2]
[423784766,1780424632000,-334.17124544,9.9e-05,2]
[423784769,1780424830000,653.53,8.203e-05,2]
[423784771,1780424951000,-433.14549635,0.0001,2]
[423784770,1780424951000,-5000.0,9.801e-05,2]
[423784776,1780425032000,-1120.78017483,9.9e-05,2]
[423784775,1780425032000,-3614.14654064,9.9e-05,2]
[423784901,1780425038000,-500.0,0.00011463,2]
[423784898,1780425038000,-268.71207046,0.00011463,2]
[423784893,1780425038000,-500.0,0.00011463,2]
[423784894,1780425038000,-500.0,0.00011463,2]
[423784876,1780425038000,-500.0,0.00011463,2]
[423784899,1780425038000,-500.0,0.00011463,2]
[423784896,1780425038000,-500.0,0.00011463,2]
[423784884,1780425038000,-500.0,0.00011463,2]
[423784891,1780425038000,-500.0,0.00011463,2]
[423784885,1780425038000,-500.0,0.00011463,2]
[423784889,1780425038000,-500.0,0.00011463,2]
[423784887,1780425038000,-500.0,0.00011463,2]
[423784869,1780425038000,-500.0,0.00011463,2]
[423784880,1780425038000,-500.0,0.00011463,2]
[423784878,1780425038000,-500.0,0.00011463,2]
[423784874,1780425038000,-500.0,0.00011463,2]
[423784872,1780425038000,-336.30242085,0.00011463,2]
[423784858,1780425038000,-3043.59210504,0.0001,2]
[423784862,1780425038000,-220.312127,0.0001049,2]
[423784860,1780425038000,-1023.477669,0.0001,2]
[423784871,1780425038000,-500.0,0.00011463,2]
[423784867,1780425038000,-171.6443699,0.00011062,2]
[423784865,1780425038000,-7366.2426719,0.00010789,2]
[423784856,1780425038000,-265.07328453,9.9e-05,2]
[423784903,1780425038000,-500.0,0.00011463,2]
[423784882,1780425038000,-500.0,0.00011463,2]
[423784905,1780425038000,-500.0,0.00011463,2]
[423784910,1780425038000,-500.0,0.00011463,2]
[423784918,1780425038000,-500.0,0.00011463,2]
[423784907,1780425038000,-500.0,0.00011463,2]
[423784955,1780425038000,-5516.48799545,0.00012957,7]
[423784959,1780425038000,-500.0,0.00013698,2]
[423784957,1780425038000,-316.51157,0.00013253,2]
[423784953,1780425038000,-1564.66238704,0.00012957,7]
[423784952,1780425038000,-720.0,0.00012794,2]
[423784950,1780425038000,-316.51157,0.00012758,2]
[423784948,1780425038000,-5516.48799544,0.00012495,7]
[423784946,1780425038000,-1564.66238701,0.00012495,7]
[423784944,1780425038000,-390.99419572,0.00012494,2]
[423784942,1780425038000,-316.51157,0.00012262,2]
[423784940,1780425038000,-5516.48799544,0.00012147,7]
[423784937,1780425038000,-183.0,0.00011901,2]
[423784939,1780425038000,-1564.66238701,0.00012147,7]
[423784936,1780425038000,-5516.48799544,0.000118,7]
[423784921,1780425038000,-184.44696916,0.00011463,2]
[423784932,1780425038000,-316.51157,0.00011767,2]
[423784909,1780425038000,-500.0,0.00011463,2]
[423784913,1780425038000,-500.0,0.00011463,2]
[423784914,1780425038000,-500.0,0.00011463,2]
[423784922,1780425038000,-500.0,0.00011463,2]
[423784916,1780425038000,-500.0,0.00011463,2]
[423784926,1780425038000,-1564.66238701,0.00011569,7]
[423784930,1780425038000,-600.0,0.00011631,2]
[423784928,1780425038000,-5516.48799544,0.00011569,7]
[423784934,1780425038000,-1564.66238701,0.000118,7]
[423784924,1780425038000,-500.0,0.00011463,2]
[423785048,1780425039000,-500.0,0.00013698,2]
[423785042,1780425039000,-500.0,0.00013698,2]
[423785027,1780425039000,-500.0,0.00013698,2]
[423785036,1780425039000,-500.0,0.00013698,2]
[423785050,1780425039000,-500.0,0.00013698,2]
[423785032,1780425039000,-500.0,0.00013698,2]
[423785046,1780425039000,-500.0,0.00013698,2]
[423785034,1780425039000,-500.0,0.00013698,2]
[423785030,1780425039000,-500.0,0.00013698,2]
[423785028,1780425039000,-500.0,0.00013698,2]
[423785055,1780425039000,-500.0,0.00013698,2]
[423785044,1780425039000,-500.0,0.00013698,2]
[423785040,1780425039000,-500.0,0.00013698,2]
[423785076,1780425039000,-500.0,0.00013972,2]
[423785038,1780425039000,-500.0,0.00013698,2]
[423785057,1780425039000,-1468.148579,0.00013699,2]
[423785053,1780425039000,-500.0,0.00013698,2]
[423785058,1780425039000,-1000.0,0.00013699,2]
[423785060,1780425039000,-316.51157,0.00013748,2]
[423785074,1780425039000,-500.0,0.00013972,2]
[423785072,1780425039000,-500.0,0.00013972,2]
[423785067,1780425039000,-500.0,0.00013972,2]
[423785063,1780425039000,-216.0,0.00013901,2]
[423785061,1780425039000,-215.49260843,0.00013872,2]
[423784963,1780425039000,-500.0,0.00013698,2]
[423785013,1780425039000,-500.0,0.00013698,2]
[423785078,1780425039000,-500.0,0.00013972,2]
[423785080,1780425039000,-500.0,0.00013972,2]
[423785051,1780425039000,-500.0,0.00013698,2]
[423785024,1780425039000,-500.0,0.00013698,2]
[423784996,1780425039000,-500.0,0.00013698,2]
[423785015,1780425039000,-500.0,0.00013698,2]
[423785088,1780425039000,-500.0,0.00013972,2]
[423784974,1780425039000,-500.0,0.00013698,2]
[423784961,1780425039000,-500.0,0.00013698,2]
[423784970,1780425039000,-500.0,0.00013698,2]
[423784966,1780425039000,-500.0,0.00013698,2]
[423784964,1780425039000,-500.0,0.00013698,2]
[423784972,1780425039000,-500.0,0.00013698,2]
[423784968,1780425039000,-500.0,0.00013698,2]
[423784976,1780425039000,-500.0,0.00013698,2]
[423784978,1780425039000,-500.0,0.00013698,2]
[423784979,1780425039000,-500.0,0.00013698,2]
[423784992,1780425039000,-500.0,0.00013698,2]
[423784998,1780425039000,-217.30813877,0.00013698,2]